fUSD/lending_fUSD_20240506
["ID","MTS","AMOUNT","RATE_DAILY","PERIOD"]
[326520036,1715038264010,-1134.57,0.00024931,2]
[326520037,1715038264021,-953.92,0.00024931,2]
[326520038,1715038264032,-1803.23,0.00024931,2]
[326520039,1715038264043,-20241.56,0.00024931,2]
[326520040,1715038264053,-5566.38,0.00024931,2]
[326520041,1715038264063,-777.47,0.00024931,2]
[326520042,1715038264073,-500.0,0.00024931,2]
[326520043,1715038264083,-500.0,0.00024931,2]
[326520044,1715038264093,-8850.73,0.00024931,2]
[326520045,1715038264103,-2143.05,0.00024931,2]
[326520046,1715038264114,-2671.24,0.00024931,2]
[326520047,1715038264127,-1325.86,0.00024931,2]
[326520048,1715038264137,-6449.16,0.00024931,2]
[326520049,1715038264148,-1006.48,0.00024931,2]
[326520050,1715038264158,-743.7,0.00024931,2]
[326520051,1715038264168,-37667.67,0.00024931,2]
[326520052,1715038264178,-33957.45,0.00024931,2]
[326520053,1715038264189,-1895.42,0.00024931,2]
[326520054,1715038264199,-1128.56,0.00024931,2]
[326520055,1715038264209,-708.34,0.00024931,2]
[326520056,1715038264219,-583.26,0.00024931,2]
[326520057,1715038264229,-1808.62,0.00024931,2]
[326520058,1715038264239,-500.0,0.00024931,2]
[326520059,1715038264251,-500.0,0.00024931,2]
[326520060,1715038264278,-500.0,0.00024931,2]
[326520061,1715038264292,-2912.56,0.00024931,2]
[326520062,1715038264302,-500.0,0.00024931,2]
[326520063,1715038264312,-3440.68,0.00024931,2]
[326520064,1715038264324,-742.91,0.00024931,2]
[326520065,1715038264335,-1542.24,0.00024931,2]
[326520066,1715038264345,-1027.37,0.00024931,2]
[326520067,1715038264355,-3042.79,0.00024931,2]
[326520068,1715038264368,-1004.33,0.00024931,2]
[326520069,1715038264378,-1238.23,0.00024931,2]
[326520070,1715038264388,-621.0,0.00024931,2]
[326520071,1715038264398,-500.0,0.00024931,2]
[326520072,1715038264409,-4463.26,0.00024931,2]
[326520073,1715038264420,-1350.1,0.00024931,2]
[326520074,1715038264431,-714.45,0.00024931,2]
[326520075,1715038264442,-193.91325023,0.00024931,2]
[326520076,1715038264452,-1252.59,0.00024931,2]
[326520077,1715038264463,-836.47,0.00024931,2]
[326520078,1715038264473,-500.0,0.00024931,2]
[326520079,1715038264484,-2852.89,0.00024931,2]
[326520080,1715038264494,-668.94,0.00024931,2]
[326520081,1715038264504,-1395.89,0.00024931,2]
[326520082,1715038264514,-2291.23,0.00024931,2]
[326520083,1715038264525,-5632.65,0.00024931,2]
[326520084,1715038264535,-500.0,0.00024931,2]
[326520085,1715038264545,-1006.14,0.00024931,2]
[326520086,1715038264555,-881.74,0.00024931,2]
[326520087,1715038264565,-500.0,0.00024931,2]
[326520088,1715038264575,-2815.76,0.00024931,2]
[326520089,1715038264585,-511.25,0.00024931,2]
[326520090,1715038264595,-1455.69,0.00024931,2]
[326520091,1715038264605,-1363.75,0.00024931,2]
[326520092,1715038264615,-1415.53,0.00024931,2]
[326520093,1715038264625,-500.0,0.00024931,2]
[326520094,1715038264635,-500.0,0.00024931,2]
[326520095,1715038264645,-3733.68,0.00024931,2]
[326520096,1715038264655,-3070.29,0.00024931,2]
[326520097,1715038264666,-957.87,0.00024931,2]
[326520098,1715038264677,-500.0,0.00024931,2]
[326520099,1715038264687,-2026.54,0.00024931,2]
[326520100,1715038264697,-500.0,0.00024931,2]
[326520101,1715038264708,-727.29,0.00024931,2]
[326520102,1715038264720,-5423.84,0.00024931,2]
[326520103,1715038264731,-500.0,0.00024931,2]
[326520104,1715038264741,-500.0,0.00024931,2]
[326520105,1715038264752,-734.7,0.00024931,2]
[326520106,1715038264763,-682.16,0.00024931,2]
[326520107,1715038264773,-2036.6262704,0.00024935,2]
[326520108,1715038264784,-165.42191588,0.00024952,2]
[326520109,1715038264794,-1260.347,0.00024953,4]
[326520110,1715038264804,-1260.347,0.00024953,4]
[326520111,1715038264815,-1260.347,0.00024953,4]
[326520112,1715038264826,-1260.347,0.00024953,4]
[326520113,1715038264836,-1260.347,0.00024953,4]
[326520114,1715038264847,-152.354778,0.00024953,7]
[326520115,1715038264863,-150.0,0.00024953,2]
[326520116,1715038264874,-2430.03996784,0.00024956,2]
[326520117,1715038264885,-150.0,0.00024993,2]
[326520118,1715038264895,-1500.0,0.00024994,2]
[326520119,1715038264907,-791.177645,0.00024998,2]
[326520120,1715038264918,-457.635668,0.00024998,2]
[326520121,1715038264928,-474.706587,0.00024998,2]
[326520122,1715038264940,-471.60362987,0.00025,2]
[326520123,1715038264951,-155.0,0.00025,2]
[326520124,1715038264961,-2218.57256714,0.00025,2]
[326520125,1715038264971,-171.94275642,0.00025,2]
[326520126,1715038264982,-155.0,0.00025,2]
[326520127,1715038264992,-1000.0,0.00025,2]
[326520128,1715038265002,-928.11538721,0.00025,2]
[326520129,1715038265013,-6541.91421318,0.00025,2]
[326520130,1715038265023,-1258.55,0.00025,5]
[326520131,1715038265034,-50194.0,0.00025,3]
[326520132,1715038265044,-711.52,0.00025,2]
[326520133,1715038265054,-523.06,0.00025,2]
[326520134,1715038265065,-267.379919,0.00025,7]
[326520135,1715038265075,-151.0,0.00025,7]
[326520136,1715038265086,-1000.0,0.00025002,2]
[326520137,1715038265110,-500.0,0.00025002,2]
[326520138,1715038265122,-155.0,0.00025008,2]
[326520139,1715038265136,-335.55208326,0.00025008,7]
[326520140,1715038265146,-150.0,0.00025059,2]
[326520141,1715038265156,-241.24731649,0.00025105,2]
[326520142,1715038265167,-153.62123464,0.00025124,2]
[326520143,1715038265178,-157.35873203,0.00025124,2]
[326520144,1715038265189,-157.050707,0.00025148,4]
[326520145,1715038265200,-1682.4384053,0.00025188,2]
[326520146,1715038265211,-342.0,0.000252,2]
[326520147,1715038265222,-484.0,0.000252,8]
[326520148,1715038265232,-965.0,0.000252,8]
[326520149,1715038265243,-150.0,0.000252,4]
[326520150,1715038265254,-291.66822795,0.00025204,2]
[326520151,1715038265265,-620.73662156,0.00025204,2]
[326520152,1715038265276,-150.0,0.00025204,10]
[326520153,1715038265286,-7096.1,0.00025204,2]
[326520154,1715038265297,-7096.1,0.00025204,2]
[326520155,1715038265308,-7096.1,0.00025204,2]
[326520156,1715038265319,-7096.1,0.00025204,2]
[326520157,1715038265330,-500.0,0.00025205,4]
[326520158,1715038265341,-529.5,0.00025205,4]
[326520159,1715038265352,-500.0,0.00025205,4]
[326520160,1715038265370,-517.84004805,0.00025205,4]
[326520161,1715038265381,-500.0,0.00025205,4]
[326520162,1715038265393,-884.2,0.00025205,4]
[326520163,1715038265404,-838.77,0.00025205,4]
[326520164,1715038265415,-500.0,0.00025205,4]
[326520165,1715038265426,-500.0,0.00025205,4]
[326520166,1715038265437,-515.36,0.00025205,4]
[326520167,1715038265450,-500.0,0.00025205,4]
[326520168,1715038265461,-505.64,0.00025205,4]
[326520169,1715038265471,-512.18,0.00025205,4]
[326520170,1715038265482,-500.0,0.00025205,4]
[326520171,1715038265493,-500.0,0.00025205,4]
[326520172,1715038265504,-500.0,0.00025205,4]
[326520173,1715038265515,-681.6,0.00025205,4]
[326520174,1715038265526,-151.0,0.00025205,7]
[326520175,1715038265537,-500.0,0.00025205,4]
[326520176,1715038265547,-500.0,0.00025205,4]
[326520177,1715038265559,-500.0,0.00025205,4]
[326520178,1715038265570,-622.96,0.00025205,4]
[326520179,1715038265584,-500.0,0.00025205,4]
[326520180,1715038265595,-500.0,0.00025205,4]
[326520181,1715038265605,-500.0,0.00025205,4]
[326520182,1715038265617,-500.0,0.00025205,4]
[326520183,1715038265627,-500.0,0.00025205,4]
[326520184,1715038265639,-580.81,0.00025205,4]
[326520185,1715038265659,-500.0,0.00025205,4]
[326520186,1715038265687,-500.0,0.00025205,4]
[326520187,1715038265700,-500.0,0.00025205,4]
[326520188,1715038265718,-500.0,0.00025205,4]
[326520189,1715038265730,-500.0,0.00025205,4]
[326520190,1715038265743,-500.0,0.00025205,4]
[326520191,1715038265757,-500.0,0.00025205,4]
[326520192,1715038265770,-522.0,0.00025205,4]
[326520193,1715038265782,-806.98,0.00025205,4]
[326520194,1715038265794,-500.0,0.00025205,4]
[326520195,1715038265806,-500.0,0.00025205,4]
[326520196,1715038265820,-500.0,0.00025205,4]
[326520197,1715038265832,-500.0,0.00025205,4]
[326520198,1715038265844,-500.0,0.00025205,4]
[326520199,1715038265856,-690.77,0.00025205,4]
[326520200,1715038265872,-500.0,0.00025205,4]
[326520201,1715038265884,-1073.77,0.00025205,4]
[326520202,1715038265896,-566.43,0.00025205,4]
[326520203,1715038265918,-1311.61,0.00025205,4]
[326520204,1715038265939,-500.0,0.00025205,4]
[326520205,1715038265950,-1077.9,0.00025205,4]
[326520206,1715038265963,-519.38,0.00025205,4]
[326520207,1715038265973,-500.0,0.00025205,4]
[326520208,1715038265984,-730.22,0.00025205,4]
[326520209,1715038265996,-500.0,0.00025205,4]
[326520210,1715038266006,-956.04,0.00025205,4]
[326520211,1715038266017,-500.0,0.00025205,4]
[326520212,1715038266029,-536.14,0.00025205,4]
[326520213,1715038266040,-502.54,0.00025205,4]
[326520214,1715038266052,-539.45,0.00025205,4]
[326520215,1715038266062,-503.95591419,0.00025205,4]
[326520216,1715038266073,-651.42,0.00025205,4]
[326520217,1715038266084,-500.0,0.00025205,4]
[326520218,1715038266094,-500.0,0.00025205,4]
[326520219,1715038266106,-540.14,0.00025205,4]
[326520220,1715038266117,-500.0,0.00025205,4]
[326520221,1715038266127,-724.89,0.00025205,4]
[326520222,1715038266137,-500.0,0.00025205,4]
[326520223,1715038266148,-596.31,0.00025205,4]
[326520224,1715038266158,-500.0,0.00025205,4]
[326520225,1715038266170,-2499.34,0.00025205,4]
[326520226,1715038266183,-500.0,0.00025205,4]
[326520227,1715038266196,-500.0,0.00025205,4]
[326520228,1715038266211,-500.0,0.00025205,4]
[326520229,1715038266222,-702.5,0.00025205,4]
[326520230,1715038266234,-500.0,0.00025205,4]
[326520231,1715038266246,-1029.31,0.00025205,4]
[326520232,1715038266259,-500.0,0.00025205,4]
[326520233,1715038266270,-795.9,0.00025205,4]
[326520234,1715038266282,-500.0,0.00025205,4]
[326520235,1715038266292,-569.54,0.00025205,4]
[326520236,1715038266303,-152.087316,0.00025205,7]
[326520237,1715038266313,-500.0,0.00025205,4]
[326520238,1715038266324,-600.62,0.00025205,4]
[326520239,1715038266335,-500.0,0.00025205,4]
[326520240,1715038266345,-500.0,0.00025205,4]
[326520241,1715038266356,-871.79,0.00025205,4]
[326520242,1715038266370,-647.41,0.00025205,4]
[326520243,1715038266383,-500.0,0.00025205,4]
[326520244,1715038266394,-500.0,0.00025205,4]
[326520245,1715038266404,-500.0,0.00025205,4]
[326520246,1715038266414,-677.87,0.00025205,4]
[326520247,1715038266424,-500.0,0.00025205,4]
[326520248,1715038266435,-500.0,0.00025205,4]
[326520249,1715038266446,-500.0,0.00025205,4]
[326520250,1715038266455,-500.0,0.00025205,4]
[326520251,1715038266465,-500.0,0.00025205,4]
[326520252,1715038266476,-569.96,0.00025205,4]
[326520253,1715038266486,-500.0,0.00025205,4]
[326520254,1715038266496,-611.95,0.00025205,4]
[326520255,1715038266507,-500.0,0.00025205,4]
[326520256,1715038266518,-500.0,0.00025205,4]
[326520257,1715038266528,-500.0,0.00025205,4]
[326520258,1715038266538,-594.51,0.00025205,4]
[326520259,1715038266550,-500.0,0.00025205,4]
[326520260,1715038266561,-500.0,0.00025205,4]
[326520261,1715038266571,-151.0,0.00025205,7]
[326520262,1715038266581,-258.117142,0.00025205,7]
[326520263,1715038266592,-500.0,0.00025205,4]
[326520264,1715038266820,-174.73557033,0.00025205,4]
[326520265,1715038266870,-809.18,0.00025205,4]
[326520266,1715038266879,-500.0,0.00025205,4]
[326520267,1715038266889,-500.0,0.00025205,4]
[326520268,1715038266899,-500.0,0.00025205,4]
[326520269,1715038266910,-151.8639,0.00025205,7]
[326520270,1715038266919,-650.11,0.00025205,4]
[326520271,1715038266931,-500.0,0.00025205,4]
[326520272,1715038266941,-500.0,0.00025205,4]
[326520273,1715038266952,-500.0,0.00025205,4]
[326520274,1715038266963,-500.0,0.00025205,4]
[326520275,1715038266972,-500.0,0.00025205,4]
[326520276,1715038266982,-520.64,0.00025205,4]
[326520277,1715038266995,-500.0,0.00025205,4]
[326520278,1715038267051,-432.13345685,0.00025205,4]
[326520279,1715038267061,-500.0,0.00025205,4]
[326520280,1715038267072,-688.38,0.00025205,4]
[326520281,1715038267082,-760.75,0.00025205,4]
[326520282,1715038267092,-1003.87,0.00025205,4]
[326520283,1715038267102,-500.0,0.00025205,4]
[326520284,1715038267114,-500.0,0.00025205,4]
[326520285,1715038267124,-500.0,0.00025205,4]
[326520286,1715038267134,-500.0,0.00025205,4]
[326520287,1715038267145,-500.0,0.00025205,4]
[326520288,1715038267156,-839.41,0.00025205,4]
[326520289,1715038267165,-500.0,0.00025205,4]
[326520290,1715038267175,-500.0,0.00025205,4]
[326520291,1715038267188,-500.0,0.00025205,4]
[326520292,1715038267197,-745.92,0.00025205,4]
[326520293,1715038267207,-1590.84,0.00025205,4]
[326520294,1715038267218,-500.0,0.00025205,4]
[326520295,1715038267231,-990.58,0.00025205,4]
[326520296,1715038267241,-150.28201316,0.00025205,4]
[326520297,1715038267251,-955.2,0.00025205,4]
[326520298,1715038267260,-1693.94,0.00025205,4]
[326520299,1715038267270,-527.08,0.00025205,4]
[326520300,1715038267280,-500.0,0.00025205,4]
[326520301,1715038267290,-500.0,0.00025205,4]
[326520302,1715038267301,-710.27,0.00025205,4]
[326520303,1715038267311,-500.0,0.00025205,4]
[326520304,1715038267321,-500.0,0.00025205,4]
[326520305,1715038267331,-500.0,0.00025205,4]
[326520306,1715038267341,-500.0,0.00025205,4]
[326520307,1715038267352,-500.0,0.00025205,4]
[326520308,1715038267366,-631.65,0.00025205,4]
[326520309,1715038267377,-500.0,0.00025205,4]
[326520310,1715038267388,-500.0,0.00025205,4]
[326520311,1715038267398,-500.0,0.00025205,4]
[326520312,1715038267410,-500.0,0.00025205,4]
[326520313,1715038267421,-500.0,0.00025205,4]
[326520314,1715038267433,-552.31,0.00025205,4]
[326520315,1715038267443,-574.49,0.00025205,4]
[326520316,1715038267454,-500.0,0.00025205,4]
[326520317,1715038267464,-1015.1,0.00025205,4]
[326520318,1715038267474,-500.0,0.00025205,4]
[326520319,1715038267484,-500.0,0.00025205,4]
[326520320,1715038267494,-500.0,0.00025205,4]
[326520321,1715038267507,-1147.48,0.00025205,4]
[326520322,1715038267517,-885.64,0.00025205,4]
[326520323,1715038267527,-500.0,0.00025205,4]
[326520324,1715038267536,-2640.19,0.00025205,4]
[326520325,1715038267547,-251.276247,0.00025205,7]
[326520326,1715038267557,-500.0,0.00025205,4]
[326520327,1715038267567,-500.0,0.00025205,4]
[326520328,1715038267577,-1455.84,0.00025205,4]
[326520329,1715038267587,-668.99,0.00025205,4]
[326520330,1715038267597,-500.0,0.00025205,4]
[326520331,1715038267607,-824.69,0.00025205,4]
[326520332,1715038267617,-500.0,0.00025205,4]
[326520333,1715038267627,-500.0,0.00025205,4]
[326520334,1715038267637,-500.0,0.00025205,4]
[326520335,1715038267647,-500.0,0.00025205,2]
[326520336,1715038267657,-500.0,0.00025205,4]
[326520337,1715038267668,-500.0,0.00025205,4]
[326520338,1715038267678,-699.44,0.00025205,4]
[326520339,1715038267692,-500.0,0.00025205,2]
[326520340,1715038267704,-500.0,0.00025205,2]
[326520341,1715038267738,-500.0,0.00025205,2]
[326520342,1715038267748,-926.06,0.00025205,2]
[326520343,1715038267759,-1881.28,0.00025205,2]
[326520344,1715038267769,-870.01,0.00025205,2]
[326520345,1715038267779,-864.48,0.00025205,2]
[326520346,1715038267790,-706.78,0.00025205,2]
[326520347,1715038267800,-1846.31,0.00025205,2]
[326520348,1715038267810,-150.0,0.00025205,2]
[326520349,1715038267820,-500.0,0.00025205,2]
[326520350,1715038267831,-151.0,0.00025205,7]
[326520351,1715038267842,-151.0,0.00025205,7]
[326520352,1715038267853,-500.0,0.00025205,2]
[326520353,1715038267867,-500.0,0.00025205,2]
[326520354,1715038267876,-1816.09,0.00025205,2]
[326520355,1715038267886,-500.0,0.00025205,2]
[326520356,1715038267899,-3064.95,0.00025205,2]
[326520357,1715038267908,-684.2,0.00025205,2]
[326520358,1715038267919,-500.0,0.00025205,2]
[326520359,1715038267928,-151.0,0.00025205,7]
[326520360,1715038267941,-186.081686,0.00025205,7]
[326520361,1715038267951,-909.08,0.00025205,2]
[326520362,1715038267963,-500.0,0.00025205,2]
[326520363,1715038267973,-500.0,0.00025205,2]
[326520364,1715038267984,-152.23142,0.00025205,7]
[326520365,1715038267994,-500.0,0.00025205,2]
[326520366,1715038268004,-538.64,0.00025205,2]
[326520367,1715038268014,-886.92,0.00025205,2]
[326520368,1715038268024,-151.0,0.00025205,7]
[326520369,1715038268034,-151.0,0.00025205,7]
[326520370,1715038268044,-500.0,0.00025205,2]
[326520371,1715038268055,-151.0,0.00025205,7]
[326520372,1715038268066,-153.319531,0.00025205,7]
[326520373,1715038268076,-151.0,0.00025205,7]
[326520374,1715038268086,-705.98,0.00025205,2]
[326520375,1715038268096,-807.9,0.00025205,2]
[326520376,1715038268106,-151.0,0.00025205,7]
[326520377,1715038268117,-500.0,0.00025205,2]
[326520378,1715038268127,-500.0,0.00025205,2]
[326520379,1715038268140,-500.0,0.00025205,2]
[326520380,1715038268150,-500.0,0.00025205,2]
[326520381,1715038268160,-500.0,0.00025205,2]
[326520382,1715038268170,-1105.75,0.00025205,2]
[326520383,1715038268183,-500.0,0.00025205,2]
[326520384,1715038268193,-599.38,0.00025205,2]
[326520385,1715038268203,-151.0,0.00025205,7]
[326520386,1715038268213,-151.0,0.00025205,7]
[326520387,1715038268223,-668.24,0.00025205,2]
[326520388,1715038268234,-1254.59,0.00025205,2]
[326520389,1715038268249,-151.0,0.00025205,7]
[326520390,1715038268269,-153.947786,0.00025205,7]
[326520391,1715038268299,-500.0,0.00025205,2]
[326520392,1715038268312,-151.0,0.00025205,7]
[326520393,1715038268323,-151.0,0.00025205,7]
[326520394,1715038268334,-722.22,0.00025205,2]
[326520395,1715038268344,-1378.33,0.00025205,2]
[326520396,1715038268355,-2324.58,0.00025205,2]
[326520397,1715038268374,-151.0,0.00025205,7]
[326520398,1715038268385,-153.439821,0.00025205,7]
[326520399,1715038268395,-152.262091,0.00025205,7]
[326520400,1715038268405,-500.0,0.00025205,2]
[326520401,1715038268415,-500.0,0.00025205,2]
[326520402,1715038268425,-1352.7,0.00025205,2]
[326520403,1715038268438,-910.73,0.00025205,2]
[326520404,1715038268448,-1129.92,0.00025205,2]
[326520405,1715038268458,-151.0,0.00025205,7]
[326520406,1715038268468,-924.7,0.00025205,2]
[326520407,1715038268478,-151.0,0.00025205,7]
[326520408,1715038268488,-807.79,0.00025205,2]
[326520409,1715038268498,-500.0,0.00025205,2]
[326520410,1715038268508,-687.46,0.00025205,2]
[326520411,1715038268518,-500.0,0.00025205,2]
[326520412,1715038268528,-500.0,0.00025205,2]
[326520413,1715038268538,-500.0,0.00025205,2]
[326520414,1715038268548,-563.91,0.00025205,2]
[326520415,1715038268558,-500.0,0.00025205,2]
[326520416,1715038268567,-500.0,0.00025205,2]
[326520417,1715038268577,-1345.5,0.00025205,2]
[326520418,1715038268587,-152.107744,0.00025205,7]
[326520419,1715038268597,-618.28,0.00025205,2]
[326520420,1715038268607,-500.0,0.00025205,2]
[326520421,1715038268617,-500.0,0.00025205,2]
[326520422,1715038268626,-785.29,0.00025205,2]
[326520423,1715038268636,-500.0,0.00025205,2]
[326520424,1715038268646,-817.36,0.00025205,2]
[326520425,1715038268655,-1138.08,0.00025205,2]
[326520426,1715038268665,-1078.71,0.00025205,2]
[326520427,1715038268688,-801.23,0.00025205,2]
[326520428,1715038268699,-500.0,0.00025205,2]
[326520429,1715038268709,-500.0,0.00025205,2]
[326520430,1715038268726,-731.09,0.00025205,2]
[326520431,1715038268737,-274.726699,0.00025205,7]
[326520432,1715038268749,-500.0,0.00025205,2]
[326520433,1715038268759,-500.0,0.00025205,2]
[326520434,1715038268771,-1128.27,0.00025205,2]
[326520435,1715038268782,-1280.77,0.00025205,2]
[326520436,1715038268793,-1474.25,0.00025205,2]
[326520437,1715038268807,-500.0,0.00025205,2]
[326520438,1715038268818,-151.0,0.00025205,7]
[326520439,1715038268828,-195.736738,0.00025205,7]
[326520440,1715038268838,-1951.83,0.00025205,2]
[326520441,1715038268850,-801.15,0.00025205,2]
[326520442,1715038268865,-500.0,0.00025205,2]
[326520443,1715038268876,-524.83,0.00025205,2]
[326520444,1715038268887,-730.84,0.00025205,2]
[326520445,1715038268899,-1185.82,0.00025205,2]
[326520446,1715038268909,-1197.69,0.00025205,2]
[326520447,1715038268924,-500.0,0.00025205,2]
[326520448,1715038268939,-500.0,0.00025205,2]
[326520449,1715038268949,-500.0,0.00025205,2]
[326520450,1715038268960,-1270.4,0.00025205,2]
[326520451,1715038268970,-798.84,0.00025205,2]
[326520452,1715038268981,-151.0,0.00025205,7]
[326520453,1715038268995,-709.65,0.00025205,2]
[326520454,1715038269005,-1020.16,0.00025205,2]
[326520455,1715038269016,-1284.96,0.00025205,2]
[326520456,1715038269027,-1290.11,0.00025205,2]
[326520457,1715038269038,-1733.3,0.00025205,2]
[326520458,1715038269049,-1087.4,0.00025205,2]
[326520459,1715038269060,-500.0,0.00025205,2]
[326520460,1715038269070,-500.0,0.00025205,2]
[326520461,1715038269082,-1976.61,0.00025205,2]
[326520462,1715038269093,-669.75,0.00025205,2]
[326520463,1715038269103,-500.0,0.00025205,2]
[326520464,1715038269114,-1255.13,0.00025205,2]
[326520465,1715038269125,-500.0,0.00025205,2]
[326520466,1715038269135,-500.0,0.00025205,2]
[326520467,1715038269146,-1561.34,0.00025205,2]
[326520468,1715038269156,-942.09,0.00025205,2]
[326520469,1715038269167,-151.0,0.00025205,7]
[326520470,1715038269178,-500.0,0.00025205,2]
[326520471,1715038269190,-985.04,0.00025205,2]
[326520472,1715038269202,-500.0,0.00025205,2]
[326520473,1715038269212,-500.0,0.00025205,2]
[326520474,1715038269223,-1442.5,0.00025205,2]
[326520475,1715038269234,-716.48,0.00025205,2]
[326520476,1715038269244,-1259.09,0.00025205,2]
[326520477,1715038269255,-500.0,0.00025205,2]
[326520478,1715038269266,-2804.12,0.00025205,2]
[326520479,1715038269277,-500.0,0.00025205,2]
[326520480,1715038269287,-500.0,0.00025205,2]
[326520481,1715038269299,-500.0,0.00025205,2]
[326520482,1715038269309,-1334.4,0.00025205,2]
[326520483,1715038269320,-589.01,0.00025205,2]
[326520484,1715038269330,-500.0,0.00025205,2]
[326520485,1715038269340,-500.0,0.00025205,2]
[326520486,1715038269352,-829.31,0.00025205,2]
[326520487,1715038269365,-500.0,0.00025205,2]
[326520488,1715038269377,-500.0,0.00025205,2]
[326520489,1715038269387,-500.0,0.00025205,2]
[326520490,1715038269399,-1140.78,0.00025205,2]
[326520491,1715038269409,-692.81,0.00025205,2]
[326520492,1715038269420,-553.25,0.00025205,2]
[326520493,1715038269430,-500.0,0.00025205,2]
[326520494,1715038269441,-500.0,0.00025205,2]
[326520495,1715038269451,-2922.31,0.00025205,2]
[326520496,1715038269462,-500.0,0.00025205,2]
[326520497,1715038269472,-749.47,0.00025205,2]
[326520498,1715038269484,-511.35,0.00025205,2]
[326520499,1715038269495,-633.6,0.00025205,2]
[326520500,1715038269612,-500.0,0.00025205,2]
[326520501,1715038269624,-151.0,0.00025205,7]
[326520502,1715038269634,-556.17,0.00025205,2]
[326520503,1715038269644,-500.0,0.00025205,2]
[326520504,1715038269654,-525.78580242,0.00025205,2]
[326520505,1715038269664,-152.456833,0.00025205,7]
[326520506,1715038269675,-1237.18,0.00025205,2]
[326520507,1715038269687,-764.71,0.00025205,2]
[326520508,1715038269697,-744.87,0.00025205,2]
[326520509,1715038269707,-500.0,0.00025205,2]
[326520510,1715038269717,-500.0,0.00025205,2]
[326520511,1715038269726,-2617.48,0.00025205,2]
[326520512,1715038269736,-152.162666,0.00025205,7]
[326520513,1715038269746,-2566.25,0.00025205,2]
[326520514,1715038269755,-500.0,0.00025205,2]
[326520515,1715038269765,-500.0,0.00025205,2]
[326520516,1715038269775,-151.0,0.00025205,7]
[326520517,1715038269785,-639.45,0.00025205,2]
[326520518,1715038269799,-1347.34,0.00025205,2]
[326520519,1715038269809,-872.39,0.00025205,2]
[326520520,1715038269819,-805.27,0.00025205,2]
[326520521,1715038269829,-563.21,0.00025205,2]
[326520522,1715038269839,-155.90276945,0.00025205,2]
[326520523,1715038269850,-515.74,0.00025205,2]
[326520524,1715038269865,-831.44,0.00025205,2]
[326520525,1715038269876,-500.0,0.00025205,2]
[326520526,1715038269887,-780.01,0.00025205,2]
[326520527,1715038269897,-2336.28,0.00025205,2]
[326520528,1715038269910,-1122.34,0.00025205,2]
[326520529,1715038269921,-500.0,0.00025205,2]
[326520530,1715038269933,-500.0,0.00025205,2]
[326520531,1715038269946,-772.46,0.00025205,2]
[326520532,1715038269958,-722.59,0.00025205,2]
[326520533,1715038269969,-1478.0,0.00025205,2]
[326520534,1715038269980,-2649.98,0.00025205,2]
[326520535,1715038269991,-500.0,0.00025205,2]